bitfinex/quotes_SOLUSD_20241021
["timestamp","ask_amount","ask_price","bid_price","bid_amount"]
[1729470737234,23.776884,169.26,169.16,0.6319043]
[1729470737761,23.776884,169.24,169.16,0.6319043]
[1729470739154,23.776884,169.25,169.16,0.6319043]
[1729470740355,24.66352562,169.25,169.16,0.6319043]
[1729470748066,23.776884,169.23,169.16,0.6319043]
[1729470749463,0.88664162,169.25,169.16,0.6319043]
[1729470749656,0.88664162,169.25,169.16,20.6319043]
[1729470749967,0.88664162,169.25,169.17,1.68968862]
[1729470750164,0.88664162,169.25,169.17,4.39967746]
[1729470750368,0.88664162,169.25,169.18,21.68968862]
[1729470750549,0.88664162,169.25,169.19,1.68968862]
[1729470750749,0.88664162,169.25,169.19,24.39967746]
[1729470751053,0.88664162,169.25,169.2,21.68968862]
[1729470751247,0.88664162,169.25,169.21,1.68968862]
[1729470751448,0.8845879,169.3,169.21,1.68968862]
[1729470751449,0.8845879,169.3,169.24,20.0]
[1729470751667,0.8845879,169.3,169.25,1.69154332]
[1729470752044,0.8845879,169.3,169.24,20.0]
[1729470752368,0.8845879,169.3,169.25,1.69381954]
[1729470752549,0.8845879,169.3,169.24,20.0]
[1729470752750,23.776884,169.29,169.24,20.0]
[1729470753258,23.776884,169.29,169.25,1.69774194]
[1729470754864,0.8845879,169.3,169.25,1.69774194]
[1729470756148,0.8845879,169.3,169.25,1.6985917]
[1729470760163,0.8845879,169.3,169.25,4.41674074]
[1729470760457,0.8845879,169.3,169.25,4.51674074]
[1729470760667,0.8845879,169.3,169.25,4.61674074]
[1729470760852,8.79e-05,169.3,169.26,0.1]
[1729470761055,16.597,169.37,169.26,0.1]
[1729470761453,6.3141,169.38,169.26,0.1]
[1729470761663,21.3662,169.43,169.28,0.1]
[1729470761863,22.25192491,169.43,169.28,1.7985917]
[1729470762071,22.25192491,169.43,169.3,20.0]
[1729470762268,22.25192491,169.43,169.31,1.6985917]
[1729470762777,22.25192491,169.43,169.32,21.70188896]
[1729470762959,22.25192491,169.43,169.33,1.70188896]
[1729470763859,23.776884,169.42,169.33,1.70188896]
[1729470764548,22.25192491,169.43,169.33,1.70188896]
[1729470765371,0.88572491,169.43,169.33,1.70188896]
[1729470765571,0.88572491,169.43,169.34,0.1]
[1729470765958,0.88572491,169.43,169.33,1.70188896]
[1729470766381,0.88572491,169.43,169.34,1.7028695]
[1729470766671,0.88572491,169.43,169.35,1.7028695]
[1729470766873,0.88572491,169.43,169.36,1.7028695]
[1729470767081,0.88572491,169.43,169.37,1.7028695]
[1729470767261,23.776884,169.42,169.38,1.7028695]
[1729470767580,23.776884,169.42,169.33,2.72499468]
[1729470767780,23.776884,169.42,169.34,1.70290843]
[1729470767980,0.88572491,169.43,169.35,1.70290843]
[1729470768157,0.88572491,169.43,169.36,1.70290843]
[1729470768478,0.88572491,169.43,169.33,2.72499468]
[1729470768479,0.88572491,169.43,169.37,1.70290843]
[1729470768776,0.88572491,169.43,169.38,1.70290843]
[1729470768975,0.88572491,169.43,169.33,2.72499468]
[1729470769160,23.776884,169.42,169.34,1.70372425]
[1729470769358,23.776884,169.42,169.32,22.72499468]
[1729470769359,23.776884,169.42,169.35,1.70372425]
[1729470769577,23.776884,169.42,169.36,1.70372425]
[1729470769871,23.776884,169.42,169.37,1.70372425]
[1729470770073,23.776884,169.42,169.33,2.72804695]
[1729470770288,23.776884,169.4,169.33,2.72804695]
[1729470770460,23.776884,169.4,169.3,2.72804695]
[1729470770656,23.776884,169.41,169.31,1.70590632]
[1729470770973,23.776884,169.38,169.32,1.70590632]
[1729470771177,23.776884,169.38,169.33,1.70590632]
[1729470771378,23.776884,169.38,169.26,18.11624695]
[1729470771379,23.776884,169.38,169.34,1.70590632]
[1729470771589,23.776884,169.38,169.26,18.11624695]
[1729470771773,23.776884,169.38,169.27,1.70873514]
[1729470771961,29.680884,169.38,169.27,1.70873514]
[1729470772165,29.680884,169.38,169.28,1.70873514]
[1729470772166,23.776884,169.38,169.28,1.70873514]
[1729470772373,23.776884,169.38,169.29,1.70873514]
[1729470772564,23.776884,169.38,169.3,1.70873514]
[1729470772760,23.776884,169.38,169.31,1.70873514]
[1729470772966,23.776884,169.38,169.25,6.6112]
[1729470773281,23.776884,169.38,169.26,21.70923118]
[1729470773460,23.776884,169.38,169.27,1.70923118]
[1729470773666,24.6629014,169.38,169.27,1.70923118]
[1729470773979,24.6629014,169.38,169.27,24.44397651]
[1729470774177,24.6629014,169.38,169.28,4.44397651]
[1729470774483,0.8860174,169.38,169.29,1.70906591]
[1729470774683,0.8860174,169.38,169.3,1.70906591]
[1729470775008,0.8860174,169.38,169.31,1.70906591]
[1729470775183,0.8860174,169.38,169.32,1.70906591]
[1729470775481,0.8860174,169.38,169.33,1.70906591]
[1729470775674,0.8860174,169.38,169.27,2.7349106]
[1729470775979,23.776884,169.37,169.28,1.71091853]
[1729470776186,23.776884,169.37,169.29,1.71091853]
[1729470776387,23.776884,169.37,169.3,1.71091853]
[1729470776687,23.776884,169.37,169.31,1.71091853]
[1729470776883,23.776884,169.37,169.32,1.71091853]
[1729470777072,23.776884,169.37,169.33,1.71091853]
[1729470777267,23.776884,169.37,169.34,1.71328459]
[1729470777587,23.776884,169.37,169.27,2.74095223]
[1729470777887,23.776884,169.37,169.28,1.71248639]
[1729470778068,23.776884,169.37,169.29,1.71248639]
[1729470778267,23.776884,169.37,169.3,1.71248639]
[1729470778484,0.8860174,169.38,169.31,1.71248639]
[1729470778793,0.8860174,169.38,169.32,1.71248639]
[1729470778992,0.8860174,169.38,169.33,1.71248639]
[1729470779291,0.8860174,169.38,169.34,1.71248639]
[1729470779491,0.8860174,169.38,169.35,1.71248639]
[1729470779698,0.8860174,169.38,169.36,1.71248639]
[1729470779996,0.8860174,169.38,169.31,2.74095223]
[1729470780190,23.776884,169.37,169.32,1.71285173]
[1729470780371,23.776884,169.37,169.33,1.71285173]
[1729470780567,23.776884,169.35,169.34,1.71285173]
[1729470780773,23.776884,169.35,169.19,21.9546]
[1729470780774,23.776884,169.35,169.22,5.11004678]
[1729470780970,29.681884,169.35,169.23,7.19696696]
[1729470781172,23.776884,169.33,169.24,1.71369568]
[1729470781397,23.776884,169.32,169.24,1.71369568]
[1729470781696,23.776884,169.32,169.24,4.45601496]
[1729470781899,23.776884,169.32,169.25,1.71369568]
[1729470782097,23.776884,169.33,169.22,1.71369568]
[1729470782277,23.776884,169.34,169.23,1.71369568]
[1729470782478,23.776884,169.34,169.24,1.71369568]
[1729470782671,23.776884,169.34,169.25,1.71369568]
[1729470782877,23.776884,169.34,169.26,1.71369568]
[1729470783076,23.776884,169.34,169.27,1.71369568]
[1729470783391,23.776884,169.33,169.28,1.71369568]
[1729470783592,23.776884,169.33,169.29,1.71369568]
[1729470783778,23.776884,169.33,169.24,22.74231928]
[1729470783779,23.776884,169.33,169.3,1.71369568]
[1729470783979,23.776884,169.33,169.26,21.71369568]
[1729470784183,23.776884,169.33,169.27,1.71369568]
[1729470784483,23.776884,169.33,169.27,24.45601496]
[1729470784684,24.66299971,169.33,169.28,24.45601496]
[1729470784899,0.88611571,169.33,169.29,24.45601496]
[1729470785077,0.88611571,169.33,169.3,24.45601496]
[1729470785278,0.88611571,169.33,169.31,21.71369568]
[1729470785479,0.88611571,169.33,169.32,1.71369568]
[1729470785902,0.88611571,169.33,169.22,4.45531205]
[1729470786091,23.776884,169.32,169.23,1.71469617]
[1729470786303,23.776884,169.32,169.24,1.71469617]
[1729470786595,23.776884,169.32,169.25,1.71469617]
[1729470786776,23.776884,169.32,169.26,1.71469617]
[1729470786971,23.776884,169.32,169.27,1.71469617]
[1729470787178,23.776884,169.32,169.28,1.71469617]
[1729470787384,23.776884,169.32,169.29,1.71469617]
[1729470787573,23.776884,169.32,169.3,1.71469617]
[1729470787773,0.88611571,169.33,169.23,22.74553323]
[1729470787985,0.88611571,169.33,169.24,24.46123988]
[1729470788180,0.88611571,169.33,169.25,24.46123988]
[1729470788392,0.88611571,169.33,169.26,1.71570665]
[1729470788581,0.88611571,169.33,169.27,1.71570665]
[1729470788896,0.88611571,169.33,169.28,1.71570665]
[1729470789474,0.88611571,169.33,169.29,1.71570665]
[1729470789681,0.88611571,169.33,169.3,1.71570665]
[1729470789887,0.88611571,169.33,169.31,1.71570665]
[1729470790087,24.66299971,169.33,169.32,1.71570665]
[1729470790482,0.88611571,169.33,169.32,1.71570665]
[1729470790680,0.88611571,169.33,169.25,1.71570665]
[1729470790890,0.88611571,169.33,169.26,4.46123988]
[1729470791093,0.88611571,169.33,169.24,0.1]
[1729470791094,0.88611571,169.33,169.27,1.71570665]
[1729470791290,0.88611571,169.33,169.28,1.71570665]
[1729470791496,0.88611571,169.33,169.29,1.71570665]
[1729470791813,0.88611571,169.33,169.3,1.71412865]
[1729470791975,0.88611571,169.33,169.31,1.71412865]
[1729470792181,0.88611571,169.33,169.32,1.71412865]
[1729470792793,0.88611571,169.33,169.26,1.71412865]
[1729470792996,0.88611571,169.33,169.27,1.71412865]
[1729470793296,0.88611571,169.33,169.28,1.71412865]
[1729470793604,0.88611571,169.33,169.29,1.71412865]
[1729470793903,0.88611571,169.33,169.3,1.71412865]
[1729470794091,0.88611571,169.33,169.31,1.71412865]
[1729470794288,0.88611571,169.33,169.32,1.71412865]
[1729470795185,0.88611571,169.33,169.28,1.71412865]
[1729470795383,0.88611571,169.33,169.26,20.0]
[1729470795579,0.88611571,169.33,169.27,4.456191]
[1729470795805,0.88611571,169.33,169.28,1.71376349]
[1729470795981,0.88611571,169.33,169.29,1.71376349]
[1729470796183,0.88611571,169.33,169.3,1.71376349]
[1729470796502,0.88611571,169.33,169.31,1.71376349]
[1729470796701,0.88611571,169.33,169.32,1.71376349]
[1729470797080,0.88611571,169.33,169.28,1.71376349]
[1729470797303,23.776884,169.32,169.29,1.71376349]
[1729470797506,23.776884,169.32,169.3,1.71376349]
[1729470797689,23.776884,169.32,169.31,1.71376349]
[1729470797887,23.776884,169.32,169.23,1.71376349]
[1729470798105,23.776884,169.32,169.24,1.71376349]
[1729470798410,23.776884,169.32,169.25,1.71376349]
[1729470798703,23.776884,169.32,169.26,1.71376349]
[1729470798903,23.776884,169.32,169.27,1.71376349]
[1729470799100,23.776884,169.32,169.23,20.0]
[1729470799311,23.776884,169.32,169.28,1.71551502]
[1729470799495,23.776884,169.32,169.29,1.71551502]
[1729470799694,23.776884,169.32,169.25,24.46028711]
[1729470799891,23.776884,169.32,169.26,24.46028711]
[1729470800092,23.776884,169.32,169.27,24.46028711]
[1729470800284,23.776884,169.32,169.28,24.46028711]
[1729470800484,0.88611571,169.33,169.29,4.46028711]
[1729470800682,0.88611571,169.33,169.3,1.7153387]
[1729470800886,0.88611571,169.33,169.3,24.46028711]
[1729470801093,0.88611571,169.33,169.31,24.46028711]
[1729470801407,0.88611571,169.33,169.32,1.71379618]
[1729470801706,24.66299971,169.33,169.24,4.45678194]
[1729470802003,0.88611571,169.33,169.25,4.45678194]
[1729470802302,0.88611571,169.33,169.26,4.45678194]
[1729470802508,23.776884,169.32,169.27,1.71379618]
[1729470802808,23.776884,169.32,169.24,2.74298576]
[1729470802809,23.776884,169.32,169.28,1.71514129]
[1729470802989,23.776884,169.32,169.29,1.71514129]
[1729470803184,23.776884,169.32,169.3,1.71514129]
[1729470803398,23.776884,169.32,169.31,1.71514129]
[1729470803991,23.776884,169.32,169.27,1.71514129]
[1729470804194,23.776884,169.32,169.28,1.71514129]
[1729470804390,23.776884,169.32,169.29,1.71514129]
[1729470804597,23.776884,169.32,169.3,1.71514129]
[1729470804789,23.776884,169.32,169.23,2.7446325]
[1729470805002,23.776884,169.32,169.24,1.71544477]
[1729470805208,23.776884,169.32,169.25,1.71544477]
[1729470805398,23.776884,169.32,169.26,1.71544477]
[1729470805594,23.776884,169.32,169.2,20.1]
[1729470805595,0.88611571,169.33,169.27,1.71544477]
[1729470805787,0.88611571,169.33,169.28,1.71544477]
[1729470805991,0.88611571,169.33,169.29,1.71544477]
[1729470806201,0.88611571,169.33,169.3,1.71544477]
[1729470806406,0.88611571,169.33,169.31,1.71608356]
[1729470806620,24.66299971,169.33,169.32,1.71608356]
[1729470806804,24.66299971,169.33,169.22,0.1]
[1729470806805,24.66299971,169.33,169.27,1.71608356]
[1729470807000,24.66299971,169.33,169.28,1.71608356]
[1729470807199,23.776884,169.32,169.29,1.71608356]
[1729470807402,23.776884,169.32,169.3,1.71608356]
[1729470807590,23.776884,169.32,169.31,1.71608356]
[1729470808298,23.776884,169.32,169.24,4.46222403]
[1729470808499,23.776884,169.32,169.25,4.46222403]
[1729470808809,23.776884,169.32,169.26,4.46222403]
[1729470808997,23.776884,169.32,169.27,1.71608356]
[1729470809196,23.776884,169.32,169.28,1.71608356]
[1729470809493,23.776884,169.32,169.29,1.71608356]
[1729470809697,5.9064,169.31,169.3,1.71608356]
[1729470809899,29.683284,169.31,169.3,1.71608356]
[1729470810104,23.776884,169.3,169.26,4.46745808]
[1729470810421,23.776884,169.3,169.27,1.72129606]
[1729470810614,23.776884,169.31,169.28,1.72129606]
[1729470810798,23.776884,169.31,169.29,1.72129606]
[1729470810999,23.776884,169.31,169.3,1.72129606]
[1729470811193,23.776884,169.32,169.3,1.72129606]
[1729470811416,23.776884,169.32,169.31,1.72129606]
[1729470812100,0.88611571,169.33,169.31,1.72129606]
[1729470812301,0.88611571,169.33,169.32,1.72129606]
[1729470815422,0.88611571,169.33,169.32,4.47577785]
[1729470815614,0.88611571,169.33,169.32,1.72129606]
[1729470816124,0.88611571,169.33,169.32,4.47577785]
[1729470816305,0.88611571,169.33,169.32,1.72129606]
[1729470816924,0.88611571,169.33,169.32,4.47577785]
[1729470817128,0.88611571,169.33,169.28,20.0]
[1729470817309,0.88611571,169.33,169.29,4.46464151]
[1729470817506,15.47041571,169.4,169.3,4.46464151]
[1729470817705,15.47041571,169.4,169.31,4.46464151]
[1729470817904,15.47041571,169.4,169.32,4.46464151]
[1729470818122,15.47041571,169.4,169.33,4.46464151]
[1729470818323,15.47041571,169.4,169.34,4.46464151]
[1729470818506,15.47041571,169.4,169.35,1.71701324]
[1729470818703,12.0743,169.45,169.36,1.71701324]
[1729470818909,6.1726,169.45,169.37,1.71701324]
[1729470819107,6.1726,169.45,169.38,1.71701324]
[1729470819311,6.1726,169.45,169.39,1.71701324]
[1729470819512,6.1726,169.45,169.4,1.71701324]
[1729470819821,6.1726,169.45,169.41,1.71701324]
[1729470820015,6.1726,169.45,169.42,1.71701324]
[1729470820327,6.1726,169.45,169.43,1.71511758]
[1729470820533,23.776884,169.44,169.43,1.71511758]
[1729470820707,23.776884,169.44,169.35,4.46286763]
[1729470820901,23.776884,169.44,169.32,20.0]
[1729470821120,23.776884,169.44,169.33,4.46026421]
[1729470821324,23.776884,169.44,169.34,4.46026421]
[1729470821518,23.776884,169.44,169.32,20.0]
[1729470821724,23.776884,169.44,169.33,4.45874266]
[1729470821925,23.776884,169.44,169.34,4.45874266]
[1729470822230,23.776884,169.44,169.35,4.45874266]
[1729470822434,23.776884,169.44,169.36,4.45874266]
[1729470822727,23.776884,169.44,169.37,1.71474469]
[1729470822928,23.776884,169.44,169.38,1.71474469]
[1729470823131,23.776884,169.44,169.39,1.71474469]
[1729470823331,23.776884,169.44,169.4,1.71474469]
[1729470823631,23.776884,169.44,169.41,1.71474469]
[1729470823822,23.776884,169.44,169.42,1.71474469]
[1729470824023,14.8475,169.52,169.38,20.0]
[1729470824024,11.98626581,169.5,169.38,20.0]
[1729470824330,5.9,169.5,169.39,1.71386823]
[1729470824509,5.9,169.5,169.4,1.71386823]
[1729470824709,5.9,169.5,169.39,2.74399797]
[1729470824710,5.9,169.5,169.41,1.71386823]
[1729470825029,5.7567,169.5,169.42,1.71386823]
[1729470825334,29.676184,169.51,169.43,1.71386823]
[1729470825628,29.676184,169.51,169.44,1.71386823]
[1729470825825,29.676184,169.51,169.45,1.71386823]
[1729470826034,29.676184,169.51,169.39,2.74399797]
[1729470826233,23.776884,169.49,169.4,1.7121766]
[1729470826530,23.776884,169.49,169.41,1.7121766]
[1729470826731,23.776884,169.49,169.42,1.7121766]
[1729470826925,23.776884,169.49,169.43,1.7121766]
[1729470827122,23.776884,169.49,169.44,1.7121766]
[1729470827321,23.776884,169.49,169.45,1.7121766]
[1729470827547,23.776884,169.49,169.39,2.74399797]
[1729470827722,23.776884,169.49,169.4,1.7117179]
[1729470828026,23.776884,169.49,169.38,22.74399797]
[1729470828027,23.776884,169.49,169.41,1.7117179]
[1729470828222,23.776884,169.49,169.42,1.71144333]
[1729470828428,23.776884,169.46,169.42,1.71144333]
[1729470828637,24.66237269,169.46,169.43,1.7119545]
[1729470828826,24.66237269,169.46,169.35,2.73871504]
[1729470829127,24.66237269,169.46,169.36,1.71191701]
[1729470829314,24.66237269,169.46,169.37,1.71191701]
[1729470829515,24.66237269,169.46,169.38,1.71191701]
[1729470829834,24.66237269,169.46,169.39,1.71191701]
[1729470829835,30.123284,169.44,169.39,1.71191701]
[1729470830043,30.123284,169.44,169.4,1.71191701]
[1729470830332,30.123284,169.44,169.41,1.71191701]
[1729470830526,30.123284,169.44,169.42,1.71191701]
[1729470830728,30.123284,169.44,169.35,2.73871504]
[1729470831031,30.123284,169.44,169.36,1.71211029]
[1729470831229,30.123284,169.44,169.37,1.71211029]
[1729470831534,30.123284,169.44,169.38,1.71211029]
[1729470831843,30.123284,169.44,169.39,1.71211029]
[1729470832131,30.123284,169.44,169.4,1.71211029]
[1729470832330,30.123284,169.44,169.41,1.71213443]
[1729470832514,30.123284,169.44,169.42,1.71213443]
[1729470832718,30.123284,169.44,169.35,2.73982097]
[1729470833021,30.123284,169.44,169.36,1.71268099]
[1729470833226,30.123284,169.44,169.37,1.71268099]
[1729470833426,30.123284,169.44,169.38,1.71268099]
[1729470833626,29.679484,169.42,169.39,1.71268099]
[1729470833829,29.679584,169.42,169.33,2.73982097]
[1729470834018,29.679584,169.42,169.34,1.71304873]
[1729470834213,29.679584,169.42,169.35,1.71304873]
[1729470834421,29.679584,169.42,169.36,1.71304873]
[1729470834620,29.679584,169.42,169.37,1.71304873]
[1729470834621,30.56527601,169.42,169.37,1.71304873]
[1729470834826,30.56527601,169.42,169.31,2.73982097]
[1729470835131,30.56527601,169.42,169.32,1.71384938]
[1729470835449,30.56527601,169.42,169.3,20.0]
[1729470835742,24.66257601,169.42,169.31,4.45586878]
[1729470836036,24.66257601,169.42,169.32,4.45586878]
[1729470836219,24.66257601,169.42,169.33,1.71363936]
[1729470836420,24.66257601,169.42,169.34,1.71363936]
[1729470836624,30.56517601,169.42,169.35,1.71363936]
[1729470836841,30.56517601,169.42,169.36,1.71363936]
[1729470837136,30.56517601,169.42,169.37,1.71363936]
[1729470837331,23.776884,169.4,169.38,1.71363936]
[1729470837530,23.776884,169.4,169.31,2.74222942]
[1729470837714,23.776884,169.4,169.32,1.7137917]
[1729470837910,23.776884,169.4,169.33,1.7137917]
[1729470838138,23.718384,169.4,169.34,1.7137917]
[1729470838322,23.718384,169.4,169.32,1.7137917]
[1729470838633,23.718384,169.4,169.33,1.7137917]
[1729470838838,23.718384,169.4,169.34,1.7137917]
[1729470839139,23.718384,169.4,169.35,1.7137917]
[1729470839317,23.718384,169.4,169.36,1.7137917]
[1729470839521,23.718384,169.4,169.31,2.74222942]
[1729470839817,23.718384,169.4,169.32,1.71397699]
[1729470840050,23.718384,169.4,169.33,1.71397699]
[1729470840236,23.718384,169.4,169.31,2.74222942]
[1729470840237,5.9038,169.39,169.34,1.71397699]
[1729470840437,0.98569201,169.42,169.35,1.71397699]
[1729470840438,23.776884,169.38,169.35,1.71397699]
[1729470840739,23.776884,169.38,169.36,1.71397699]
[1729470840921,23.776884,169.39,169.29,2.74222942]
[1729470841115,24.66272639,169.39,169.3,1.71375719]
[1729470841345,24.66272639,169.39,169.28,20.0]
[1729470841531,24.66272639,169.39,169.29,2.74277186]
[1729470841729,24.66272639,169.39,169.31,1.71397831]
[1729470842120,24.66272639,169.39,169.29,2.74277186]
[1729470842338,24.66272639,169.39,169.32,1.71417054]
[1729470842526,24.66272639,169.39,169.33,1.71417054]
[1729470842719,24.66272639,169.39,169.34,1.71417054]
[1729470842920,30.56622639,169.39,169.35,1.71417054]
[1729470843120,30.56622639,169.39,169.29,2.74307946]
[1729470843121,23.776884,169.36,169.29,2.74307946]
[1729470843341,23.776884,169.36,169.25,16.6367]
[1729470843342,6.2027,169.35,169.3,1.71503555]
[1729470843639,23.776884,169.34,169.31,1.71503555]
[1729470843830,23.776884,169.34,169.32,1.71503555]
[1729470844035,23.776884,169.34,169.26,2.74307946]
[1729470844036,24.66291614,169.34,169.33,1.71503555]
[1729470844442,24.66291614,169.34,169.27,1.71503555]
[1729470844642,24.66291614,169.34,169.28,1.71503555]
[1729470844643,5.9057,169.33,169.28,1.71503555]
[1729470844833,5.9057,169.33,169.2,16.42061818]
[1729470844834,23.776884,169.32,169.29,1.71503555]
[1729470845019,23.776884,169.32,169.3,1.71503555]
[1729470845221,44.942784,169.32,169.31,1.71503555]
[1729470845418,5.9066,169.31,169.24,2.74307946]
[1729470845624,23.776884,169.3,169.25,1.7167699]
[1729470845922,23.776884,169.31,169.26,1.7167699]
[1729470846125,29.683184,169.31,169.27,1.7167699]
[1729470846443,29.683184,169.31,169.28,1.7167699]
[1729470846629,30.56955044,169.31,169.29,1.7167699]
[1729470846820,24.66325044,169.31,169.2,2.74307946]
[1729470847021,24.66325044,169.31,169.21,4.46007057]
[1729470847220,24.66325044,169.31,169.22,1.71699111]
[1729470847422,24.66325044,169.31,169.18,6.3964]
[1729470847423,24.66325044,169.31,169.23,1.71699111]
[1729470847643,24.66325044,169.31,169.24,1.71699111]
[1729470847817,24.66325044,169.31,169.25,1.71699111]
[1729470848150,23.776884,169.29,169.26,1.71699111]
[1729470848322,30.56955044,169.31,169.27,1.71699111]
[1729470848524,29.683884,169.29,169.28,1.71699111]
[1729470848844,36.127084,169.29,169.28,1.71699111]
[1729470849022,23.776884,169.26,169.17,2.74307946]
[1729470849225,5.9091,169.23,169.18,1.71789917]
[1729470849426,23.776884,169.22,169.19,1.71789917]
[1729470849628,23.776884,169.22,169.2,1.71789917]
[1729470849939,23.776884,169.22,169.16,0.6319043]
[1729470849940,23.776884,169.22,169.21,1.71789917]
[1729470850145,23.776884,169.22,169.17,1.71789917]
[1729470850329,23.776884,169.22,169.18,1.71789917]
[1729470850526,24.6636435,169.22,169.19,1.71789917]
[1729470850841,24.6636435,169.22,169.2,1.71789917]
[1729470851026,24.6636435,169.22,169.21,1.71789917]
[1729470851222,24.6636435,169.22,169.17,1.71789917]
[1729470851433,24.6636435,169.22,169.16,0.6319043]
[1729470851434,24.6636435,169.22,169.18,1.71789917]
[1729470851642,24.6636435,169.22,169.19,1.71789917]
[1729470851849,24.6636435,169.22,169.2,1.71789917]
[1729470852035,24.6636435,169.22,169.21,1.71789917]
[1729470852229,24.6636435,169.22,169.18,20.0]
[1729470852424,24.6636435,169.22,169.19,1.71370198]
[1729470852835,0.8867595,169.22,169.19,1.71370198]
[1729470853031,0.8867595,169.22,169.2,1.71370198]
[1729470853346,0.8867595,169.22,169.21,1.71370198]
[1729470853729,0.8867595,169.22,169.18,1.71370198]
[1729470854153,0.8867595,169.22,169.19,1.71370198]
[1729470854450,0.8867595,169.22,169.2,1.71370198]
[1729470854645,0.8867595,169.22,169.21,1.71370198]
[1729470854827,0.8867595,169.22,169.18,1.71370198]
[1729470855031,24.6636435,169.22,169.19,1.71370198]
[1729470855235,23.776884,169.21,169.2,1.71370198]
[1729470855943,23.776884,169.21,169.2,1.71167946]
[1729470856129,23.776884,169.21,169.19,1.71167946]
[1729470856330,23.776884,169.21,169.2,1.71167946]
[1729470858144,23.776884,169.21,169.18,1.71167946]
[1729470858336,23.776884,169.21,169.19,1.71167946]
[1729470858532,23.776884,169.21,169.2,1.71167946]
[1729470858948,23.776884,169.21,169.17,4.45077244]
[1729470859143,23.776884,169.21,169.18,1.71167946]
[1729470859453,23.776884,169.21,169.16,0.6319043]
[1729470859654,23.776884,169.21,169.19,1.71056319]
[1729470859838,23.776884,169.21,169.2,1.71056319]
[1729470860245,23.776884,169.21,169.16,0.6319043]
[1729470860754,46.594684,169.21,169.16,0.6319043]
[1729470861454,47.48154412,169.21,169.16,0.6319043]
[1729470862535,47.48154412,169.21,169.16,2.34246749]
[1729470862739,47.48154412,169.21,169.17,1.71056319]
[1729470862935,47.48154412,169.21,169.16,0.6319043]
[1729470864958,46.594684,169.21,169.16,0.6319043]
[1729470865337,47.48154668,169.21,169.16,2.34034424]
[1729470865660,47.48154668,169.21,169.16,0.6319043]
[1729470867437,47.48154668,169.21,169.16,2.33985607]
[1729470867649,47.48154668,169.21,169.16,0.6319043]
[1729470868232,47.48154668,169.21,169.16,2.33771834]
[1729470868455,47.48154668,169.21,169.16,0.6319043]
[1729470868645,0.88686268,169.21,169.16,0.6319043]
[1729470870652,23.776884,169.2,169.16,0.6319043]
[1729470871860,23.776884,169.2,169.16,2.33716593]
[1729470872070,23.776884,169.2,169.17,1.70526163]
[1729470872353,23.776884,169.24,169.17,1.70526163]
[1729470872575,15.5021,169.25,169.17,1.70526163]
[1729470873161,22.2975108,169.25,169.18,1.70526163]
[1729470873342,22.2975108,169.25,169.16,0.6319043]
[1729470873543,5.9087,169.24,169.16,0.6319043]
[1729470873860,23.776884,169.23,169.16,0.6319043]
[1729470874065,23.776884,169.23,169.16,2.33552744]
[1729470874359,23.776884,169.23,169.17,1.70362314]
[1729470874546,23.776884,169.23,169.16,0.6319043]
[1729470874547,23.776884,169.24,169.18,1.70362314]
[1729470874751,16.3889108,169.25,169.16,0.6319043]
[1729470875071,16.3889108,169.25,169.16,2.33502937]
[1729470875471,0.8868108,169.25,169.17,15.7202]
[1729470875664,15.7838,169.29,169.18,21.70312507]
[1729470875844,16.67022145,169.29,169.19,1.70312507]
[1729470876349,0.88642145,169.29,169.2,6.1489]
[1729470876665,0.88642145,169.29,169.21,21.70312507]
[1729470876959,0.88642145,169.29,169.22,1.70312507]
[1729470877158,0.88642145,169.29,169.21,20.0]
[1729470877361,0.88642145,169.29,169.23,1.70149152]
[1729470877547,5.9042,169.37,169.24,20.0]
[1729470877548,15.284,169.37,169.24,20.0]
[1729470877871,15.284,169.37,169.25,1.70149152]
[1729470878159,6.1749,169.39,169.25,1.70149152]
[1729470878364,7.06099455,169.39,169.25,1.70149152]
[1729470879263,5.9042,169.37,169.25,1.70149152]
[1729470879445,12.96479455,169.39,169.25,1.70149152]
[1729470879642,7.06099455,169.39,169.25,1.70149152]
[1729470879845,5.9038,169.38,169.25,1.70149152]
[1729470880044,7.06099455,169.39,169.25,1.70108391]
[1729470880239,6.79078339,169.36,169.25,1.70108391]
[1729470880444,23.776884,169.35,169.25,1.70108391]
[1729470881239,23.776884,169.35,169.25,8.18399189]
[1729470881443,0.88618339,169.36,169.26,21.70108391]
[1729470881643,0.88618339,169.36,169.27,1.70108391]
[1729470881866,0.88618339,169.36,169.29,20.0]
[1729470882146,0.88618339,169.36,169.3,1.70108391]
[1729470884273,0.88618339,169.36,169.3,4.42780066]
[1729470884573,0.88618339,169.36,169.32,20.0]